bitfinex/quotes_BTCUSD_20250723
["timestamp","ask_amount","ask_price","bid_price","bid_amount"]
[1753269773158,0.00024,118580.0,118570.0,1.4954655]
[1753269774160,0.00024,118580.0,118570.0,1.5454655]
[1753269776282,0.00024,118580.0,118570.0,1.3656655]
[1753269776436,0.00024,118580.0,118570.0,1.4953855]
[1753269776648,0.0002,118590.0,118570.0,1.54614573]
[1753269776875,0.00034753,118590.0,118580.0,1.08766312]
[1753269777073,0.00034753,118590.0,118580.0,1.17204214]
[1753269777339,0.00247753,118590.0,118580.0,1.05556484]
[1753269777962,0.00034753,118590.0,118580.0,1.05556484]
[1753269778200,0.00034753,118590.0,118580.0,0.80296733]
[1753269778403,0.00034753,118590.0,118580.0,1.0963727]
[1753269778618,0.00034753,118590.0,118580.0,1.184226]
[1753269779243,0.00034753,118590.0,118580.0,1.054506]
[1753269779382,0.00034753,118590.0,118580.0,1.184226]
[1753269780234,0.00034753,118590.0,118580.0,1.483126]
[1753269783126,0.42872753,118610.0,118600.0,0.1939283]
[1753269783380,0.43085753,118610.0,118600.0,0.84247732]
[1753269783616,0.43085753,118610.0,118600.0,1.12657483]
[1753269784026,0.43085753,118610.0,118600.0,0.84167732]
[1753269784231,0.43085753,118610.0,118600.0,1.12657483]
[1753269784443,0.43285753,118610.0,118600.0,1.12657483]
[1753269784862,0.43285753,118610.0,118600.0,1.15164235]
[1753269785018,0.43585753,118610.0,118600.0,1.21261435]
[1753269786666,0.43585753,118610.0,118600.0,1.15164235]
[1753269789184,0.58585753,118610.0,118600.0,1.15164235]
[1753269789583,0.58287753,118610.0,118600.0,1.15164235]
[1753269789825,0.57253,118610.0,118600.0,0.86674484]
[1753269790032,0.57551,118610.0,118600.0,0.86674484]
[1753269790239,0.57551,118610.0,118600.0,1.15164235]
[1753269790631,0.57551,118610.0,118600.0,0.86674484]
[1753269790854,0.17551,118610.0,118600.0,1.15164235]
[1753269792453,0.19201,118610.0,118600.0,1.15164235]
[1753269793659,0.17253,118610.0,118600.0,1.15164235]
[1753269794094,0.17551,118610.0,118600.0,1.15164235]
[1753269795165,0.19111,118610.0,118600.0,1.15164235]
[1753269796255,0.17551,118610.0,118600.0,1.15164235]
[1753269796466,0.17253,118610.0,118600.0,1.23611965]
[1753269797203,0.15713,118610.0,118600.0,1.23812965]
[1753269797770,0.15713,118610.0,118600.0,1.15365235]
[1753269798629,0.155,118610.0,118600.0,1.52302716]
[1753269798849,0.155,118610.0,118600.0,0.97228214]
[1753269799067,0.155,118610.0,118600.0,1.54207716]
[1753269799281,0.155,118610.0,118600.0,1.25717965]
[1753269799485,0.155,118610.0,118600.0,1.34165695]
[1753269800706,0.155,118610.0,118600.0,1.05675944]
[1753269800928,0.155,118610.0,118600.0,1.34165695]
[1753269801118,0.155,118610.0,118600.0,1.34425695]
[1753269801689,0.155,118610.0,118600.0,0.92703944]
[1753269801899,0.15713,118610.0,118600.0,1.04327944]
[1753269802108,0.15713,118610.0,118600.0,1.32817695]
[1753269802532,0.15713,118610.0,118600.0,1.32512695]
[1753269803496,0.15713,118610.0,118600.0,1.10840965]
[1753269803724,0.19071,118610.0,118600.0,1.23863965]
[1753269803953,0.17233,118610.0,118600.0,1.23863965]
[1753269804133,0.15713,118610.0,118600.0,1.23863965]
[1753269804341,0.15713,118610.0,118600.0,1.24369965]
[1753269804559,0.15713,118610.0,118600.0,1.04327944]
[1753269804777,0.15713,118610.0,118600.0,1.32817695]
[1753269805339,0.15713,118610.0,118600.0,1.35349995]
[1753269805751,0.15413,118610.0,118600.0,1.35349995]
[1753269807221,0.15213,118610.0,118600.0,1.36899995]
[1753269807435,0.15,118610.0,118600.0,1.38469995]
[1753269808517,0.15,118610.0,118600.0,1.38569995]
[1753269808980,0.00024,118620.0,118610.0,0.21136097]
[1753269809184,0.00024,118620.0,118610.0,0.82925306]
[1753269809395,0.00024,118620.0,118610.0,0.83419306]
[1753269809964,0.00024,118620.0,118610.0,1.15841406]
[1753269810367,0.00024,118620.0,118610.0,1.49841406]
[1753269810770,0.00024,118620.0,118610.0,1.21351655]
[1753269810971,0.00024,118620.0,118610.0,1.54841406]
[1753269811404,0.00024,118620.0,118610.0,1.26351655]
[1753269811655,0.00024,118620.0,118610.0,1.54841406]
[1753269811877,0.43363,118650.0,118640.0,0.21131193]
[1753269812102,0.43363,118650.0,118640.0,0.64261193]
[1753269812103,0.43582753,118650.0,118640.0,0.64261193]
[1753269813397,0.03582753,118650.0,118640.0,0.72708923]
[1753269813671,0.03582753,118650.0,118640.0,0.71308674]
[1753269813924,0.03582753,118650.0,118640.0,0.62860944]
[1753269814152,0.01859753,118650.0,118640.0,0.62860944]
[1753269814367,0.00134753,118650.0,118640.0,0.62860944]
[1753269814580,0.00539753,118650.0,118640.0,0.62860944]
[1753269815019,0.00539753,118650.0,118640.0,0.91350695]
[1753269815278,0.00334753,118650.0,118640.0,1.11930155]
[1753269815548,0.00334753,118650.0,118640.0,1.18268251]
[1753269815963,0.00334753,118650.0,118640.0,0.897785]
[1753269816172,0.00334753,118650.0,118640.0,1.48158251]
[1753269820493,0.00334753,118650.0,118640.0,1.196685]
[1753269820698,0.00334753,118650.0,118640.0,1.48158251]
[1753269821109,0.00334753,118650.0,118640.0,1.46598251]
[1753269821320,0.00334753,118650.0,118640.0,1.49129451]
[1753269821518,0.00334753,118650.0,118640.0,1.50669451]
[1753269822394,0.00334753,118650.0,118640.0,1.49841604]
[1753269823036,0.00334753,118650.0,118640.0,1.49881604]
[1753269823902,0.00334753,118650.0,118640.0,1.50717302]
[1753269824380,0.00334753,118650.0,118640.0,1.78371355]
[1753269825061,0.00334753,118650.0,118640.0,1.78363355]
[1753269825539,0.00134753,118650.0,118640.0,1.78363355]
[1753269825786,0.00134753,118650.0,118640.0,1.78463355]
[1753269826047,0.00134753,118650.0,118640.0,1.21483853]
[1753269826288,0.00034753,118650.0,118640.0,1.78463355]
[1753269826805,0.00034753,118650.0,118640.0,1.78563355]
[1753269827265,0.00034753,118650.0,118640.0,1.50907106]
[1753269827898,0.00034753,118650.0,118640.0,1.53451441]
[1753269828755,0.00034753,118650.0,118640.0,1.81941192]
[1753269829009,0.00034753,118650.0,118640.0,1.53451441]
[1753269830180,0.00034753,118650.0,118640.0,1.2496169]
[1753269830819,0.00034753,118650.0,118640.0,1.2495369]
[1753269831468,0.00034753,118650.0,118640.0,1.53443441]
[1753269832773,0.00034753,118650.0,118640.0,1.81933192]
[1753269835789,0.00034753,118650.0,118640.0,1.2495369]
[1753269836016,0.00034753,118650.0,118640.0,1.81933192]
[1753269837381,0.00034753,118650.0,118640.0,1.50345441]
[1753269837616,0.00034753,118650.0,118640.0,1.37009441]
[1753269837813,0.00034753,118650.0,118640.0,1.51997441]
[1753269838069,0.00241753,118650.0,118640.0,1.50337441]
[1753269838793,0.00241753,118650.0,118640.0,1.0851969]
[1753269839031,0.00241753,118650.0,118640.0,1.1309696]
[1753269839250,0.00241753,118650.0,118640.0,1.28262711]
[1753269839496,0.00241753,118650.0,118640.0,1.41882711]
[1753269840362,0.00241753,118650.0,118640.0,1.62122711]
[1753269840530,0.00241753,118650.0,118640.0,1.65798662]
[1753269840772,0.00241753,118650.0,118640.0,1.61627711]
[1753269841596,0.00241753,118650.0,118640.0,1.61842711]
[1753269842774,0.00241753,118650.0,118640.0,1.3335296]
[1753269842978,0.00241753,118650.0,118640.0,1.61842711]
[1753269843812,0.00241753,118650.0,118640.0,1.62142711]
[1753269844031,0.00241753,118650.0,118640.0,1.70590441]
[1753269846129,0.00241753,118650.0,118640.0,1.70562441]
[1753269847169,0.00034753,118650.0,118640.0,1.70562441]
[1753269847592,0.00034753,118650.0,118640.0,1.72192441]
[1753269847906,0.00034753,118650.0,118640.0,1.57266441]
[1753269848122,0.00034753,118650.0,118640.0,1.70562441]
[1753269849955,0.00034753,118650.0,118640.0,1.62050711]
[1753269850670,0.00034753,118650.0,118640.0,1.92100462]
[1753269850885,0.00034753,118650.0,118640.0,1.93640462]
[1753269851093,0.00034753,118650.0,118640.0,1.65150711]
[1753269851505,0.00034753,118650.0,118640.0,1.93640462]
[1753269851734,0.00034753,118650.0,118640.0,2.00548192]
[1753269852607,0.00034753,118650.0,118640.0,2.02058192]
[1753269853043,0.00034753,118650.0,118640.0,1.93610462]
[1753269853746,0.00034753,118650.0,118640.0,1.63610711]
[1753269854585,0.00034753,118650.0,118640.0,1.3512096]
[1753269854799,0.00034753,118650.0,118640.0,1.63610711]
[1753269861091,0.00034753,118650.0,118640.0,1.93720462]
[1753269861330,0.00034753,118650.0,118640.0,2.02168192]
[1753269861825,0.00034753,118650.0,118640.0,1.73678441]
[1753269862067,0.0002,118670.0,118660.0,0.49617677]
[1753269862307,0.18741,118670.0,118660.0,0.49617677]
[1753269862538,0.18741,118670.0,118660.0,0.34371926]
[1753269863012,0.18741,118670.0,118660.0,0.21127926]
[1753269863231,0.18741,118670.0,118660.0,0.34371926]
[1753269863458,0.18841,118670.0,118660.0,0.36577772]
[1753269863676,0.19683623,118670.0,118660.0,0.36577772]
[1753269864121,0.2052626,118670.0,118660.0,0.34371926]
[1753269864358,0.21368911,118670.0,118660.0,0.54607926]
[1753269864582,0.2052626,118670.0,118660.0,0.54607926]
[1753269865059,0.18941,118670.0,118660.0,0.54607926]
[1753269865282,0.19783616,118670.0,118660.0,0.54607926]
[1753269865503,0.19783616,118670.0,118660.0,0.41363926]
[1753269865730,0.19783616,118670.0,118660.0,0.54611926]
[1753269865945,0.60626246,118670.0,118660.0,0.54611926]
[1753269866193,0.60626239,118670.0,118660.0,0.84501926]
[1753269866615,0.61468869,118670.0,118660.0,0.84501926]
[1753269866832,0.62311506,118670.0,118660.0,0.84501926]
[1753269867256,0.61468869,118670.0,118660.0,0.84501926]
[1753269868016,0.41885239,118670.0,118660.0,0.84501926]
[1753269868658,0.42727883,118670.0,118660.0,0.84501926]
[1753269868879,0.87228505,118670.0,118660.0,0.01744902]
[1753269869095,0.47228505,118670.0,118660.0,0.01744902]
[1753269869317,0.47228505,118670.0,118660.0,0.14976902]
[1753269870159,0.47228505,118670.0,118660.0,0.14972902]
[1753269870999,0.50318505,118670.0,118660.0,0.01744902]
[1753269871243,0.50318505,118670.0,118660.0,0.14972902]
[1753269871455,0.50318505,118670.0,118660.0,0.14968902]
[1753269871666,0.50318505,118670.0,118660.0,0.01744902]
[1753269871882,0.50318505,118670.0,118660.0,0.14968902]
[1753269872581,0.50318505,118670.0,118660.0,0.14964902]
[1753269872994,0.65318505,118670.0,118660.0,0.14964902]
[1753269873419,0.65318505,118670.0,118660.0,0.01744902]
[1753269873976,0.73766235,118670.0,118660.0,0.14956902]
[1753269881826,0.47697608,118660.0,118650.0,0.20236]
[1753269882057,0.50827608,118660.0,118650.0,0.35160902]
[1753269883558,0.50827608,118660.0,118650.0,0.21980902]
[1753269883777,0.50827608,118660.0,118650.0,0.35160902]
[1753269884003,0.50827608,118660.0,118650.0,0.35260902]
[1753269884422,0.50827608,118660.0,118650.0,0.35252902]
[1753269885300,0.50827608,118660.0,118650.0,0.21980902]
[1753269885496,0.50927608,118660.0,118650.0,0.35152902]
[1753269885733,0.51027608,118660.0,118650.0,0.35152902]
[1753269885927,0.51027608,118660.0,118650.0,0.52009202]
[1753269886154,0.51027608,118660.0,118650.0,0.5369481]
[1753269886369,0.51027608,118660.0,118650.0,0.53694824]
[1753269886587,0.50184879,118660.0,118650.0,0.53694824]
[1753269886799,0.48604879,118660.0,118650.0,0.53694824]
[1753269887011,0.47054879,118660.0,118650.0,0.20286824]
[1753269887269,0.47054879,118660.0,118650.0,0.33454824]
[1753269887674,0.47054879,118660.0,118650.0,0.31769202]
[1753269888082,0.47054879,118660.0,118650.0,0.14912902]
[1753269889337,0.48554879,118660.0,118650.0,0.14912902]
[1753269890198,0.88554879,118660.0,118650.0,0.14912902]
[1753269890426,0.90054879,118660.0,118650.0,0.14912902]
[1753269891321,0.90054879,118660.0,118650.0,0.01744902]
[1753269891543,0.90054879,118660.0,118650.0,0.14900902]
[1753269892024,0.88554879,118660.0,118650.0,0.14900902]
[1753269892496,0.88554879,118660.0,118650.0,0.32600017]
[1753269892715,0.47054879,118660.0,118650.0,0.19444017]
[1753269892931,0.47054879,118660.0,118650.0,0.33438824]
[1753269893184,0.47897622,118660.0,118650.0,0.33438824]
[1753269893415,0.4874033,118660.0,118650.0,0.3428161]
[1753269893652,0.47897608,118660.0,118650.0,0.14896902]
[1753269893869,0.47054879,118660.0,118650.0,0.14896902]
[1753269894105,0.48614879,118660.0,118650.0,0.14896902]
[1753269894687,0.57062609,118660.0,118650.0,0.01744902]
[1753269894902,0.8707236,118660.0,118650.0,0.14892902]
[1753269896493,0.58582609,118660.0,118650.0,0.14892902]
[1753269896710,0.8707236,118660.0,118650.0,0.14892902]
[1753269900344,0.8707236,118660.0,118650.0,0.13148]
[1753269901050,0.57062609,118660.0,118650.0,0.13148]
[1753269901288,0.55502609,118660.0,118650.0,0.13148]
[1753269902536,0.55502609,118660.0,118650.0,0.1347]
[1753269903210,0.55502609,118660.0,118650.0,0.13148]
[1753269907225,0.87483778,118660.0,118650.0,0.13148]
[1753269910377,0.55502609,118660.0,118650.0,0.13148]
[1753269910570,0.87483778,118660.0,118650.0,0.13148]
[1753269915927,0.87483778,118660.0,118650.0,0.131]
[1753269920922,0.32699115,118650.0,118640.0,0.54181523]
[1753269921144,0.32699115,118650.0,118640.0,0.55953523]
[1753269921586,0.32699115,118650.0,118640.0,0.69021523]
[1753269921787,0.33541908,118650.0,118640.0,0.69864373]
[1753269921961,0.33541908,118650.0,118640.0,0.69021523]
[1753269922162,0.16685572,118650.0,118640.0,0.70707216]
[1753269922687,0.17528379,118650.0,118640.0,0.70707216]
[1753269922925,0.17628379,118650.0,118640.0,0.70707216]
[1753269923325,0.17628372,118650.0,118640.0,0.70707216]
[1753269923599,0.16785551,118650.0,118640.0,0.70707216]
[1753269924179,0.18471123,118650.0,118640.0,0.70715216]
[1753269925082,0.18471123,118650.0,118640.0,0.38734047]
[1753269925330,0.36170287,118650.0,118640.0,0.70715216]
[1753269925464,0.36170287,118650.0,118640.0,0.38734047]
[1753269925700,0.18471172,118650.0,118640.0,0.70715216]
[1753269927223,0.16785565,118650.0,118640.0,0.70715216]
[1753269927409,0.17628365,118650.0,118640.0,0.70715216]
[1753269929471,0.18471172,118650.0,118640.0,0.70715216]
[1753269929980,0.35327472,118650.0,118640.0,0.70715216]
[1753269930216,0.36170287,118650.0,118640.0,0.70715216]
[1753269930402,0.35327515,118650.0,118640.0,0.6987238]
[1753269931059,0.35327515,118650.0,118640.0,0.7071523]
[1753269931368,0.35327515,118650.0,118640.0,0.71558073]
[1753269931800,0.18471215,118650.0,118640.0,0.71558073]
[1753269932009,0.35327515,118650.0,118640.0,0.71558073]
[1753269932219,0.16785593,118650.0,118640.0,0.71558023]
[1753269932786,0.344847,118650.0,118640.0,0.71558023]
[1753269932988,0.176284,118650.0,118640.0,0.71558023]
[1753269933604,0.344847,118650.0,118640.0,0.71558023]
[1753269933804,0.344847,118650.0,118640.0,0.70715187]
[1753269934426,0.16785593,118650.0,118640.0,0.70699187]
[1753269934635,0.34484708,118650.0,118640.0,0.71542023]
[1753269935049,0.16785593,118650.0,118640.0,0.71542023]
[1753269935691,0.16785565,118650.0,118640.0,0.71542023]
[1753269936922,0.17628365,118650.0,118640.0,0.71542023]
[1753269937651,0.17628309,118650.0,118640.0,0.71542023]
[1753269937881,0.18471109,118650.0,118640.0,0.71542023]
[1753269938084,0.18471102,118650.0,118640.0,0.71542023]
[1753269939905,0.17628309,118650.0,118640.0,0.71542023]
[1753269940415,0.18471102,118650.0,118640.0,0.71542023]
[1753269940874,0.17628302,118650.0,118640.0,0.71542023]
[1753269941087,0.18471095,118650.0,118640.0,0.71542023]
[1753269941300,0.17628302,118650.0,118640.0,0.71542023]
[1753269942482,0.17628302,118650.0,118640.0,0.39560854]
[1753269942690,0.18471102,118650.0,118640.0,0.71542023]
[1753269943072,0.17628302,118650.0,118640.0,0.71542023]
[1753269943277,0.18471095,118650.0,118640.0,0.71542023]
[1753269943926,0.18471095,118650.0,118640.0,1.21542023]
[1753269944722,0.19313895,118650.0,118640.0,1.21542023]
[1753269944910,0.16785523,118650.0,118640.0,1.21542023]
[1753269945114,0.17628316,118650.0,118640.0,1.21542023]
[1753269945321,0.18471116,118650.0,118640.0,1.21542023]
[1753269946079,0.19313923,118650.0,118640.0,1.21542023]
[1753269946266,0.18471116,118650.0,118640.0,1.21542023]
[1753269946993,0.19313923,118650.0,118640.0,1.21542023]
[1753269947204,0.36170287,118650.0,118640.0,1.21542023]
[1753269950262,0.18471172,118650.0,118640.0,1.21542023]
[1753269951784,0.36170287,118650.0,118640.0,1.21542023]
[1753269954098,0.18471172,118650.0,118640.0,1.21542023]
[1753269954609,0.18471172,118650.0,118640.0,0.89560854]
[1753269954815,0.36170287,118650.0,118640.0,1.21542023]
[1753269955213,0.18471172,118650.0,118640.0,1.21542023]
[1753269955535,0.21701172,118650.0,118640.0,0.66857702]
[1753269955806,0.63549696,118600.0,118590.0,0.01847]
[1753269956028,1.03978595,118600.0,118590.0,0.02061]
[1753269956246,0.71997383,118600.0,118590.0,0.13573753]
[1753269956468,0.72840574,118600.0,118590.0,0.47074922]
[1753269956693,0.34392844,118600.0,118590.0,0.48614922]
[1753269956913,0.3439288,118600.0,118590.0,0.48614922]
[1753269957346,0.33549732,118600.0,118590.0,0.18378655]
[1753269957799,0.33549732,118600.0,118590.0,0.18382655]
[1753269958249,0.34049732,118600.0,118590.0,0.18382655]
[1753269958911,0.34049732,118600.0,118590.0,0.50363824]
[1753269959403,0.34049732,118600.0,118590.0,0.18382655]
[1753269960035,0.34049696,118600.0,118590.0,0.18382655]
[1753269960258,0.005,118600.0,118590.0,0.63700241]
[1753269960486,0.005,118600.0,118590.0,0.94682636]
[1753269960735,0.308429,118630.0,118620.0,0.24294463]
[1753269960944,0.308429,118630.0,118620.0,0.86579228]
[1753269960945,0.02528735,118630.0,118620.0,0.86579228]
[1753269961173,0.20230853,118630.0,118620.0,0.84893244]
[1753269961405,0.2107381,118630.0,118620.0,0.84893244]
[1753269961634,0.20230896,118630.0,118620.0,0.84893244]
[1753269961882,0.20230896,118630.0,118620.0,0.86579235]
[1753269962345,0.20430896,118630.0,118620.0,0.86579235]
[1753269963979,0.02728798,118630.0,118620.0,0.86579235]
[1753269964211,0.02728791,118630.0,118620.0,0.87422213]
[1753269964460,0.01885849,118630.0,118620.0,0.85677311]
[1753269965004,0.02728791,118630.0,118620.0,0.87422213]
[1753269966664,0.01885849,118630.0,118620.0,0.87422213]
[1753269966880,0.02728784,118630.0,118620.0,0.87422213]
[1753269967182,0.010429,118630.0,118620.0,0.87422213]
[1753269967602,0.01885814,118630.0,118620.0,0.87422213]
[1753269967808,0.02728742,118630.0,118620.0,0.87422213]
[1753269968045,0.01885814,118630.0,118620.0,0.87422213]
[1753269968257,0.02728742,118630.0,118620.0,0.87422213]
[1753269968655,0.01885807,118630.0,118620.0,0.87422213]
[1753269968886,0.02728728,118630.0,118620.0,0.87422213]
[1753269969099,0.0357167,118630.0,118620.0,0.87422213]
[1753269969504,0.03571663,118630.0,118620.0,0.87422213]
[1753269969697,0.02728728,118630.0,118620.0,0.87422213]
[1753269969832,0.03571663,118630.0,118620.0,0.87422213]
[1753269970058,0.03571656,118630.0,118620.0,0.87422213]
[1753269970271,0.02728728,118630.0,118620.0,0.87422213]
[1753269971507,0.02728728,118630.0,118620.0,0.58969455]
[1753269971718,0.03571656,118630.0,118620.0,0.58969455]
[1753269971922,0.03571656,118630.0,118620.0,0.87422213]
[1753269972562,0.02728728,118630.0,118620.0,0.87422213]
[1753269972996,0.03571656,118630.0,118620.0,0.87422213]
[1753269973208,0.02728728,118630.0,118620.0,0.58969455]
[1753269973491,0.01885807,118630.0,118620.0,0.87422213]
[1753269973758,0.002,118630.0,118620.0,0.87422213]
[1753269974220,0.002,118630.0,118620.0,0.89954313]
[1753269974410,0.001,118630.0,118620.0,0.89954313]
[1753269975176,0.55,118640.0,118630.0,0.19387925]
[1753269975441,0.55,118640.0,118630.0,0.64484683]
[1753269976469,0.55012422,118640.0,118630.0,0.64484683]
[1753269976966,0.55012422,118640.0,118630.0,0.64584683]
[1753269977737,0.55855251,118640.0,118630.0,0.64584683]
[1753269977949,0.55855244,118640.0,118630.0,0.64584683]
[1753269979210,0.55012422,118640.0,118630.0,0.64584683]
[1753269979509,0.55012422,118640.0,118630.0,0.69473967]
[1753269979951,0.15012422,118640.0,118630.0,0.64584683]
[1753269981774,0.00012422,118640.0,118630.0,0.66329585]
[1753269982042,0.00012422,118640.0,118630.0,1.37230073]
[1753269982330,0.00012422,118640.0,118630.0,1.08777315]
[1753269983079,0.00012422,118640.0,118630.0,1.08677315]
[1753269983571,0.00012422,118640.0,118630.0,1.09077315]
[1753269984063,0.00012422,118640.0,118630.0,1.11609015]
[1753269984783,0.00012422,118640.0,118630.0,1.11809015]
[1753269985935,0.00012422,118640.0,118630.0,1.12664042]
[1753269987566,0.00012422,118640.0,118630.0,1.42554042]
[1753269990823,0.00012422,118640.0,118630.0,1.710068]
[1753269991126,0.15,118670.0,118660.0,0.18540274]
[1753269991330,0.15,118670.0,118660.0,0.93345032]
[1753269991542,0.15,118670.0,118660.0,0.93654032]
[1753269991747,0.15,118670.0,118660.0,1.02101762]
[1753269992312,0.15,118670.0,118660.0,1.04633062]
[1753269993081,0.151,118670.0,118660.0,1.04633062]
[1753269993219,0.151,118670.0,118660.0,0.96185332]
[1753269994705,0.152,118670.0,118660.0,0.96185332]
[1753269995148,0.552,118670.0,118660.0,0.96185332]
[1753270001338,0.151,118670.0,118660.0,0.96185332]
[1753270001550,0.15,118670.0,118660.0,0.96185332]
[1753270001968,0.15,118670.0,118660.0,0.96285332]
[1753270004958,0.15,118670.0,118660.0,0.96269332]
[1753270006341,0.15,118670.0,118660.0,1.04717062]
[1753270006553,0.15,118670.0,118660.0,0.97120814]
[1753270006768,0.15,118670.0,118660.0,0.96269332]
[1753270009907,0.15,118670.0,118660.0,0.83165332]
[1753270010074,0.15,118670.0,118660.0,0.96257332]
[1753270010733,0.15,118670.0,118660.0,0.97098509]
[1753270011765,0.15,118670.0,118660.0,0.96257332]
[1753270012591,0.15198,118670.0,118660.0,0.96257332]
[1753270013252,0.15,118670.0,118660.0,0.96257332]
[1753270016756,0.15,118670.0,118660.0,1.16493332]
[1753270018739,0.15,118670.0,118660.0,1.16393332]
[1753270018991,0.15,118670.0,118660.0,1.16693332]
[1753270019417,0.15,118670.0,118660.0,1.16493332]
[1753270019626,0.15,118670.0,118660.0,1.16693332]
[1753270020327,0.15,118670.0,118660.0,1.16893332]
[1753270020761,0.32,118680.0,118670.0,0.24246293]
[1753270020946,0.32049149,118680.0,118670.0,0.65953051]
[1753270021092,0.32049149,118680.0,118670.0,0.66253051]
[1753270021743,0.02049149,118680.0,118670.0,0.70156216]
[1753270021979,0.02049149,118680.0,118670.0,0.66353051]
[1753270022171,0.02049149,118680.0,118670.0,0.68884151]
[1753270022387,0.02049149,118680.0,118670.0,0.68984151]
[1753270022713,0.02049149,118680.0,118670.0,1.07321881]
[1753270022938,0.02049149,118680.0,118670.0,1.15769611]
[1753270024130,0.02049149,118680.0,118670.0,1.14332369]
[1753270024338,0.02049149,118680.0,118670.0,1.48332369]
[1753270024772,0.02049149,118680.0,118670.0,1.19879611]
[1753270028040,0.02049149,118680.0,118670.0,1.19779611]
[1753270028457,0.02049149,118680.0,118670.0,1.20179611]
[1753270028671,0.02049149,118680.0,118670.0,1.20079611]
[1753270028879,0.02049149,118680.0,118670.0,1.50069611]
[1753270029753,0.02049149,118680.0,118670.0,1.49969611]
[1753270030097,0.02049149,118680.0,118670.0,1.50269611]
[1753270030517,0.02049149,118680.0,118670.0,1.41821881]
[1753270032893,0.02049149,118680.0,118670.0,1.70274639]
[1753270033539,1e-08,118680.0,118670.0,1.70274639]
[1753270039842,1e-08,118680.0,118670.0,1.69974639]
[1753270040667,1e-08,118680.0,118670.0,1.69574639]
[1753270040903,1e-08,118680.0,118670.0,1.78022369]
[1753270041103,1e-08,118680.0,118670.0,1.78222369]
[1753270041656,1e-08,118680.0,118670.0,1.78022369]
[1753270041886,1e-08,118680.0,118670.0,1.78622369]
[1753270042098,1e-08,118680.0,118670.0,1.79022369]
[1753270042724,1e-08,118680.0,118670.0,1.79086369]
[1753270049879,0.00306,118690.0,118680.0,1.15120176]
[1753270050078,0.00318422,118690.0,118680.0,1.45311636]
[1753270050288,0.00318422,118690.0,118680.0,1.45628636]
[1753270050491,0.00318422,118690.0,118680.0,1.48159136]
[1753270051564,0.00318422,118690.0,118680.0,1.48559136]
[1753270052556,0.00318422,118690.0,118680.0,1.78449136]
[1753270052975,0.00318422,118690.0,118680.0,1.65357136]
[1753270053168,0.00318422,118690.0,118680.0,1.85418188]
[1753270054773,0.00318422,118690.0,118680.0,1.2153162]
[1753270054971,0.00318422,118690.0,118680.0,1.85418188]
[1753270056912,0.1502,118700.0,118690.0,0.58223027]
[1753270057092,0.0002,118700.0,118690.0,1.82207055]
[1753270057318,0.0002,118700.0,118690.0,1.47026391]
[1753270057887,0.0002,118700.0,118690.0,1.18637487]
[1753270058159,0.0002,118700.0,118690.0,1.47126391]
[1753270059420,0.0002,118700.0,118690.0,1.67354391]
[1753270059621,0.0002,118700.0,118690.0,1.69884791]
[1753270062173,0.00288388,118710.0,118700.0,0.52720298]
[1753270062390,0.00288388,118710.0,118700.0,0.83236756]
[1753270063279,0.00288388,118710.0,118700.0,0.85766956]
[1753270064345,0.00615,118730.0,118720.0,0.2111813]
[1753270064593,0.00542734,118730.0,118720.0,0.92493034]
[1753270064944,0.00542734,118730.0,118720.0,0.95022934]
[1753270065157,0.00542734,118730.0,118720.0,1.03470664]
[1753270065640,0.00542734,118730.0,118720.0,1.18967568]
[1753270065849,0.00334734,118730.0,118720.0,1.35656568]
[1753270066117,0.00542734,118730.0,118720.0,1.34026568]
[1753270066712,0.00334734,118730.0,118720.0,1.34890805]
[1753270067152,0.00334734,118730.0,118720.0,1.36410805]
[1753270068805,0.00334734,118730.0,118720.0,1.38935949]
[1753270069028,0.00334734,118730.0,118720.0,1.37415949]
[1753270069229,0.00542734,118730.0,118720.0,1.37415949]
[1753270070028,0.00542734,118730.0,118720.0,1.09027045]
[1753270070753,0.00542734,118730.0,118720.0,0.92899808]
[1753270071007,0.00334734,118730.0,118720.0,1.37981712]
[1753270074753,0.00334734,118730.0,118720.0,1.38835792]
[1753270074986,0.00334734,118730.0,118720.0,1.10446888]
[1753270075437,0.04859931,118730.0,118720.0,0.24428272]
[1753270075666,0.39231556,118730.0,118720.0,0.21056111]
[1753270075889,0.42304136,118730.0,118720.0,0.21056111]
[1753270076105,0.39231556,118730.0,118720.0,0.218984]
[1753270076339,0.39231556,118730.0,118720.0,0.37573584]
[1753270076779,0.39231556,118730.0,118720.0,0.25327859]
[1753270077000,0.39231556,118730.0,118720.0,0.24485584]
[1753270077216,0.38389359,118730.0,118720.0,0.37569584]
[1753270077420,0.21544417,118730.0,118720.0,0.38411852]
[1753270077853,0.38389359,118730.0,118720.0,0.38411852]
[1753270078306,0.38389359,118730.0,118720.0,0.37565584]
[1753270078492,0.38389359,118730.0,118720.0,0.38407859]
[1753270078705,0.38389359,118730.0,118720.0,0.25327859]
[1753270078926,0.38389359,118730.0,118720.0,0.38407859]
[1753270079143,0.21544417,118730.0,118720.0,0.38407817]
[1753270079357,0.21544417,118730.0,118720.0,0.38403817]
[1753270079583,0.20702135,118730.0,118720.0,0.66792721]
[1753270079718,0.20702128,118730.0,118720.0,0.66792721]
[1753270079925,0.20702128,118730.0,118720.0,0.53716721]
[1753270080125,0.20702128,118730.0,118720.0,0.87016721]
[1753270080563,0.21544346,118730.0,118720.0,0.93058742]
[1753270080778,0.21544346,118730.0,118720.0,0.87016721]
[1753270081728,0.16384924,118730.0,118720.0,0.87016721]
[1753270081963,0.15334734,118730.0,118720.0,0.90116721]
[1753270082190,0.16373917,118730.0,118720.0,0.90638721]
[1753270082405,0.16373917,118730.0,118720.0,0.87797577]
[1753270082621,0.15531734,118730.0,118720.0,0.87591577]
[1753270082848,0.15531734,118730.0,118720.0,0.86197577]
[1753270083073,0.15531734,118730.0,118720.0,0.86513577]
[1753270083990,0.15531734,118730.0,118720.0,0.94961307]
[1753270084202,0.15531734,118730.0,118720.0,0.86197577]
[1753270084417,0.15531734,118730.0,118720.0,0.85991577]
[1753270084632,0.15531734,118730.0,118720.0,0.88013577]
[1753270086737,0.15531734,118730.0,118720.0,0.87697577]
[1753270086952,0.15531734,118730.0,118720.0,0.86197577]
[1753270087156,0.01360183,118730.0,118720.0,0.84491577]
[1753270087375,0.00518,118730.0,118720.0,0.87051159]
[1753270087815,0.00518,118730.0,118720.0,0.95443105]
[1753270088460,0.00518,118730.0,118720.0,0.73975159]
[1753270088682,0.06956838,118730.0,118720.0,0.43901705]
[1753270088967,0.33091757,118730.0,118720.0,0.56111437]
[1753270089184,0.15404539,118730.0,118720.0,0.56953705]
[1753270089804,0.3224953,118730.0,118720.0,0.56111437]
[1753270090016,0.3224953,118730.0,118720.0,0.56953719]
[1753270090447,0.31407333,118730.0,118720.0,0.56111437]
[1753270091301,0.30565129,118730.0,118720.0,0.55269148]
[1753270091529,0.30565129,118730.0,118720.0,0.56111444]
[1753270092176,0.30565129,118730.0,118720.0,0.57796015]